[Event "*** Titled Tuesday Blitz"]
[Site "Chess.com"]
[Date "2021.04.20"]
[Round "8"]
[White "Kislov_Oleg"]
[Black "Srisshhhtea"]
[Result "1-0"]
[WhiteElo "2497"]
[BlackElo "2324"]
[TimeControl "180+1"]
[EndTime "11:28:01 PDT"]
[Termination "Kislov_Oleg won by checkmate"]

1. e4 {[%clk 0:03:00.9]} 1... e6 {[%clk 0:02:50.6]} 2. d4 {[%clk 0:02:59.9]}
2... d5 {[%clk 0:02:45.7]} 3. Nc3 {[%clk 0:03:00.5]} 3... Bb4 {[%clk 0:02:43.5]}
4. exd5 {[%clk 0:03:00.6]} 4... exd5 {[%clk 0:02:38]} 5. Bd3 {[%clk 0:03:01.5]}
5... Nc6 {[%clk 0:02:36.4]} 6. Ne2 {[%clk 0:03:01.5]} 6... Nge7 {[%clk
0:02:35.8]} 7. Bg5 {[%clk 0:02:57.2]} 7... f6 {[%clk 0:02:34.7]} 8. Bh4 {[%clk
0:02:54.1]} 8... Bf5 {[%clk 0:02:34.7]} 9. O-O {[%clk 0:02:52.1]} 9... Qd7
{[%clk 0:02:34.2]} 10. Bg3 {[%clk 0:02:48.3]} 10... h5 {[%clk 0:02:31.9]} 11. h4
{[%clk 0:02:30.3]} 11... g5 {[%clk 0:02:18.1]} 12. Nb5 {[%clk 0:02:07.8]} 12...
Ba5 {[%clk 0:02:13.7]} 13. c3 {[%clk 0:01:56.7]} 13... a6 {[%clk 0:02:08.7]} 14.
Na3 {[%clk 0:01:52.8]} 14... Rg8 {[%clk 0:02:00.2]} 15. hxg5 {[%clk 0:01:38.4]}
15... fxg5 {[%clk 0:01:53.3]} 16. Nc2 {[%clk 0:01:35.9]} 16... h4 {[%clk
0:01:50.3]} 17. Bh2 {[%clk 0:01:34.3]} 17... g4 {[%clk 0:01:47.8]} 18. Ne3
{[%clk 0:01:25.4]} 18... O-O-O {[%clk 0:01:32.4]} 19. b4 {[%clk 0:01:20.8]}
19... Bb6 {[%clk 0:01:30.8]} 20. a4 {[%clk 0:01:16.5]} 20... Qe6 {[%clk
0:01:00.5]} 21. a5 {[%clk 0:01:10.9]} 21... Ba7 {[%clk 0:00:58.9]} 22. Nf4
{[%clk 0:01:03.6]} 22... Qf7 {[%clk 0:00:56.8]} 23. g3 {[%clk 0:00:54]} 23...
Bxd3 {[%clk 0:00:42.9]} 24. Qxd3 {[%clk 0:00:50.2]} 24... Ng6 {[%clk 0:00:16.4]}
25. Nxg6 {[%clk 0:00:43.7]} 25... Rxg6 {[%clk 0:00:17.3]} 26. b5 {[%clk
0:00:39]} 26... axb5 {[%clk 0:00:17.8]} 27. Qxb5 {[%clk 0:00:39.4]} 27... Rh8
{[%clk 0:00:16.5]} 28. a6 {[%clk 0:00:32.5]} 28... bxa6 {[%clk 0:00:15.6]} 29.
Rxa6 {[%clk 0:00:29.5]} 29... Bb6 {[%clk 0:00:15.8]} 30. Ra8+ {[%clk 0:00:19.4]}
30... Nb8 {[%clk 0:00:15.3]} 31. gxh4 {[%clk 0:00:17.7]} 31... Kb7 {[%clk
0:00:13.3]} 32. Rfa1 {[%clk 0:00:15.3]} 32... g3 {[%clk 0:00:10.5]} 33. Bxg3
{[%clk 0:00:12.1]} 33... Rxh4 {[%clk 0:00:09.5]} 34. Qxd5+ {[%clk 0:00:11.5]}
34... Qxd5 {[%clk 0:00:08.8]} 35. Nxd5 {[%clk 0:00:12.4]} 35... Nc6 {[%clk
0:00:07.4]} 36. Nxb6 {[%clk 0:00:12.3]} 36... cxb6 {[%clk 0:00:06.7]} 37. Re8
{[%clk 0:00:11.8]} 37... Na5 {[%clk 0:00:06.4]} 38. Re7+ {[%clk 0:00:11.3]}
38... Kc6 {[%clk 0:00:06.9]} 39. Rae1 {[%clk 0:00:10.8]} 39... Rf4 {[%clk
0:00:06.6]} 40. R1e6+ {[%clk 0:00:10.7]} 40... Rxe6 {[%clk 0:00:05.2]} 41. Rxe6+
{[%clk 0:00:11.1]} 41... Kd5 {[%clk 0:00:05.8]} 42. Rxb6 {[%clk 0:00:10.1]}
42... Rf7 {[%clk 0:00:05.9]} 43. Rb5+ {[%clk 0:00:10.1]} 43... Kc4 {[%clk
0:00:05.9]} 44. Rxa5 {[%clk 0:00:11]} 44... Kxc3 {[%clk 0:00:06.8]} 45. Rd5
{[%clk 0:00:11]} 45... Kc4 {[%clk 0:00:06.6]} 46. Rd8 {[%clk 0:00:10.9]} 46...
Ra7 {[%clk 0:00:06.7]} 47. Kg2 {[%clk 0:00:10.8]} 47... Ra1 {[%clk 0:00:07.6]}
48. d5 {[%clk 0:00:11.2]} 48... Kd3 {[%clk 0:00:08.1]} 49. d6 {[%clk 0:00:11.6]}
49... Ke4 {[%clk 0:00:08.1]} 50. Re8+ {[%clk 0:00:11]} 50... Kf5 {[%clk
0:00:08.1]} 51. d7 {[%clk 0:00:11.5]} 51... Rd1 {[%clk 0:00:08.6]} 52. d8=Q
{[%clk 0:00:11.5]} 52... Rxd8 {[%clk 0:00:09.3]} 53. Rxd8 {[%clk 0:00:12.4]}
53... Kg6 {[%clk 0:00:10.2]} 54. Kf3 {[%clk 0:00:11.6]} 54... Kf7 {[%clk
0:00:11.1]} 55. Kf4 {[%clk 0:00:11.7]} 55... Kg7 {[%clk 0:00:12]} 56. Rd6 {[%clk
0:00:11.9]} 56... Kh7 {[%clk 0:00:12.9]} 57. Kf5 {[%clk 0:00:12.2]} 57... Kg7
{[%clk 0:00:12.4]} 58. Bf4 {[%clk 0:00:12.2]} 58... Kf7 {[%clk 0:00:13.3]} 59.
Rd7+ {[%clk 0:00:12.4]} 59... Ke8 {[%clk 0:00:13.4]} 60. Ke6 {[%clk 0:00:12.1]}
60... Kf8 {[%clk 0:00:14.3]} 61. Be5 {[%clk 0:00:11.3]} 61... Kg8 {[%clk
0:00:15.2]} 62. Rd8+ {[%clk 0:00:08.4]} 62... Kh7 {[%clk 0:00:16.1]} 63. Kf6
{[%clk 0:00:08.2]} 63... Kh6 {[%clk 0:00:15.9]} 64. Rh8# {[%clk 0:00:08.9]} 1-0

[Event "*** Titled Tuesday Blitz"]
[Site "Chess.com"]
[Date "2021.04.20"]
[Round "8"]
[White "Piotrek1979"]
[Black "GameOverBro"]
[Result "1-0"]
[WhiteElo "2423"]
[BlackElo "2521"]
[TimeControl "180+1"]
[EndTime "11:28:04 PDT"]
[Termination "Piotrek1979 won by checkmate"]

1. Nf3 {[%clk 0:03:00.9]} 1... d6 {[%clk 0:02:56.4]} 2. c4 {[%clk 0:02:56.6]}
2... Nf6 {[%clk 0:02:57.3]} 3. Nc3 {[%clk 0:02:55.6]} 3... Nbd7 {[%clk
0:02:52.4]} 4. d4 {[%clk 0:02:53.6]} 4... e5 {[%clk 0:02:51.9]} 5. g3 {[%clk
0:02:51.7]} 5... c6 {[%clk 0:02:51.9]} 6. Bg2 {[%clk 0:02:51.5]} 6... Qc7 {[%clk
0:02:52]} 7. O-O {[%clk 0:02:50.6]} 7... Be7 {[%clk 0:02:49.5]} 8. e3 {[%clk
0:02:50.2]} 8... O-O {[%clk 0:02:47.8]} 9. b3 {[%clk 0:02:49.3]} 9... Re8 {[%clk
0:02:45]} 10. Bb2 {[%clk 0:02:48.4]} 10... e4 {[%clk 0:02:45.5]} 11. Nd2 {[%clk
0:02:47.1]} 11... d5 {[%clk 0:02:45.4]} 12. Rc1 {[%clk 0:02:39.1]} 12... Qa5
{[%clk 0:02:15]} 13. a3 {[%clk 0:02:38.3]} 13... a6 {[%clk 0:02:13.6]} 14. b4
{[%clk 0:02:37.3]} 14... Qd8 {[%clk 0:02:12.7]} 15. Qb3 {[%clk 0:02:24.3]} 15...
Nf8 {[%clk 0:02:08.8]} 16. a4 {[%clk 0:02:19.6]} 16... Be6 {[%clk 0:02:07.7]}
17. cxd5 {[%clk 0:01:54.4]} 17... Nxd5 {[%clk 0:01:59.3]} 18. Nxd5 {[%clk
0:01:53.5]} 18... Bxd5 {[%clk 0:01:41.9]} 19. Qc3 {[%clk 0:01:53.1]} 19... f5
{[%clk 0:01:41.7]} 20. Nc4 {[%clk 0:01:45.2]} 20... Ne6 {[%clk 0:01:35.2]} 21.
a5 {[%clk 0:01:34.8]} 21... Nc7 {[%clk 0:01:33.7]} 22. Nb6 {[%clk 0:01:33.4]}
22... Rb8 {[%clk 0:01:32.1]} 23. Qd2 {[%clk 0:01:29.9]} 23... Qd6 {[%clk
0:01:25.2]} 24. Bc3 {[%clk 0:01:19.4]} 24... Nb5 {[%clk 0:01:21]} 25. Rb1 {[%clk
0:01:11.6]} 25... Rbd8 {[%clk 0:01:18.8]} 26. Rfc1 {[%clk 0:01:06.8]} 26... h5
{[%clk 0:01:18.5]} 27. Bf1 {[%clk 0:00:48.1]} 27... h4 {[%clk 0:00:57.7]} 28.
Qd1 {[%clk 0:00:42.1]} 28... hxg3 {[%clk 0:00:52.1]} 29. hxg3 {[%clk 0:00:41.2]}
29... Qg6 {[%clk 0:00:43.8]} 30. Be1 {[%clk 0:00:37.1]} 30... f4 {[%clk
0:00:40.5]} 31. Nxd5 {[%clk 0:00:35.6]} 31... cxd5 {[%clk 0:00:34.7]} 32. exf4
{[%clk 0:00:33.8]} 32... Rc8 {[%clk 0:00:30.4]} 33. Bxb5 {[%clk 0:00:30.3]}
33... axb5 {[%clk 0:00:29.9]} 34. Bd2 {[%clk 0:00:29.8]} 34... Rc4 {[%clk
0:00:29.5]} 35. Rxc4 {[%clk 0:00:29.6]} 35... dxc4 {[%clk 0:00:27.4]} 36. Be3
{[%clk 0:00:29.3]} 36... Bd6 {[%clk 0:00:24.9]} 37. d5 {[%clk 0:00:28.5]} 37...
Rc8 {[%clk 0:00:22.8]} 38. Qd4 {[%clk 0:00:11.5]} 38... Kf7 {[%clk 0:00:22.6]}
39. Qb6 {[%clk 0:00:10.4]} 39... Rc7 {[%clk 0:00:15.8]} 40. f5 {[%clk
0:00:10.4]} 40... Qf6 {[%clk 0:00:14.1]} 41. Bd4 {[%clk 0:00:10.5]} 41... Qe7
{[%clk 0:00:14.2]} 42. f6 {[%clk 0:00:09.6]} 42... gxf6 {[%clk 0:00:14]} 43. Kg2
{[%clk 0:00:10.1]} 43... c3 {[%clk 0:00:13.9]} 44. Rh1 {[%clk 0:00:09.2]} 44...
Kg6 {[%clk 0:00:14.1]} 45. Bc5 {[%clk 0:00:06.8]} 45... Bxc5 {[%clk 0:00:12.2]}
46. bxc5 {[%clk 0:00:07.7]} 46... Qxc5 {[%clk 0:00:11.9]} 47. Qe6 {[%clk
0:00:06.5]} 47... Rg7 {[%clk 0:00:09.3]} 48. Qe8+ {[%clk 0:00:05.6]} 48... Rf7
{[%clk 0:00:07.3]} 49. Rh8 {[%clk 0:00:05.9]} 49... Qe7 {[%clk 0:00:05.7]} 50.
Rg8+ {[%clk 0:00:05.7]} 50... Kf5 {[%clk 0:00:06.3]} 51. Qc8+ {[%clk 0:00:04.9]}
51... Qd7 {[%clk 0:00:06.9]} 52. Qxc3 {[%clk 0:00:05.1]} 52... Qxd5 {[%clk
0:00:05.9]} 53. Qe3 {[%clk 0:00:05.4]} 53... Ke6 {[%clk 0:00:05.8]} 54. g4
{[%clk 0:00:05.2]} 54... Re7 {[%clk 0:00:05.1]} 55. Rg6 {[%clk 0:00:04.6]} 55...
Kf7 {[%clk 0:00:03.9]} 56. Rh6 {[%clk 0:00:03.4]} 56... Qd3 {[%clk 0:00:03.2]}
57. Qc5 {[%clk 0:00:02.6]} 57... Qf3+ {[%clk 0:00:03.8]} 58. Kg1 {[%clk
0:00:02.7]} 58... Qd1+ {[%clk 0:00:03.2]} 59. Kh2 {[%clk 0:00:02.8]} 59... Qxg4
{[%clk 0:00:02.2]} 60. Qd5+ {[%clk 0:00:02.8]} 60... Kg7 {[%clk 0:00:01.9]} 61.
Rh3 {[%clk 0:00:01.1]} 61... Qf4+ {[%clk 0:00:02.3]} 62. Rg3+ {[%clk 0:00:01.3]}
62... Kf8 {[%clk 0:00:02.7]} 63. Qg8# {[%clk 0:00:01]} 1-0

[Event "*** Titled Tuesday Blitz"]
[Site "Chess.com"]
[Date "2021.04.20"]
[Round "8"]
[White "Kildepiotr"]
[Black "Aslanov_Umid"]
[Result "1-0"]
[WhiteElo "2638"]
[BlackElo "2460"]
[TimeControl "180+1"]
[EndTime "11:28:06 PDT"]
[Termination "Kildepiotr won on time"]

1. Nf3 {[%clk 0:02:50.3]} 1... d5 {[%clk 0:02:59.3]} 2. g3 {[%clk 0:02:50.4]}
2... c6 {[%clk 0:02:59.1]} 3. Bg2 {[%clk 0:02:50.9]} 3... Nf6 {[%clk 0:02:58.4]}
4. O-O {[%clk 0:02:51.8]} 4... Bg4 {[%clk 0:02:58.2]} 5. d3 {[%clk 0:02:52.7]}
5... Nbd7 {[%clk 0:02:57.7]} 6. Nbd2 {[%clk 0:02:52.9]} 6... e5 {[%clk
0:02:57.3]} 7. e4 {[%clk 0:02:53.1]} 7... Bd6 {[%clk 0:02:54.2]} 8. h3 {[%clk
0:02:52.9]} 8... Bxf3 {[%clk 0:02:52.9]} 9. Qxf3 {[%clk 0:02:52.9]} 9... O-O
{[%clk 0:02:52.6]} 10. Qe2 {[%clk 0:02:51.6]} 10... Qc7 {[%clk 0:02:49.8]} 11.
Nf3 {[%clk 0:02:50.8]} 11... dxe4 {[%clk 0:02:42.6]} 12. dxe4 {[%clk 0:02:50.4]}
12... Nc5 {[%clk 0:02:42.2]} 13. Nh4 {[%clk 0:02:49.4]} 13... g6 {[%clk
0:02:38.3]} 14. Bg5 {[%clk 0:02:46.3]} 14... Be7 {[%clk 0:02:33.3]} 15. Rfd1
{[%clk 0:02:43.4]} 15... Rad8 {[%clk 0:02:32.3]} 16. Qe3 {[%clk 0:02:19.4]}
16... Ne6 {[%clk 0:02:30]} 17. Bh6 {[%clk 0:02:16.9]} 17... Rfe8 {[%clk
0:02:28.2]} 18. c3 {[%clk 0:02:17]} 18... Bc5 {[%clk 0:02:06.4]} 19. Qe2 {[%clk
0:02:16.3]} 19... Qb6 {[%clk 0:02:06.7]} 20. b4 {[%clk 0:02:11.8]} 20... Bf8
{[%clk 0:02:04.5]} 21. Bxf8 {[%clk 0:02:10.4]} 21... Kxf8 {[%clk 0:02:03.1]} 22.
Nf3 {[%clk 0:02:10.2]} 22... Qc7 {[%clk 0:01:34]} 23. h4 {[%clk 0:01:59.9]}
23... c5 {[%clk 0:01:33.4]} 24. b5 {[%clk 0:01:53.7]} 24... c4 {[%clk
0:01:30.9]} 25. Bh3 {[%clk 0:01:50.8]} 25... Qc5 {[%clk 0:01:21.3]} 26. Rxd8
{[%clk 0:01:46.3]} 26... Rxd8 {[%clk 0:01:14.6]} 27. Bxe6 {[%clk 0:01:46]} 27...
fxe6 {[%clk 0:01:15.5]} 28. Ng5 {[%clk 0:01:46.5]} 28... Ke7 {[%clk 0:01:14.5]}
29. Rd1 {[%clk 0:01:45.2]} 29... Rxd1+ {[%clk 0:01:06.5]} 30. Qxd1 {[%clk
0:01:45.1]} 30... Qxb5 {[%clk 0:01:05.3]} 31. Qc1 {[%clk 0:01:31.3]} 31... Qc5
{[%clk 0:00:54.8]} 32. Qb2 {[%clk 0:01:29.5]} 32... b5 {[%clk 0:00:53.2]} 33. a4
{[%clk 0:01:24.1]} 33... b4 {[%clk 0:00:33.2]} 34. cxb4 {[%clk 0:00:56.3]} 34...
c3 {[%clk 0:00:33.2]} 35. Qb3 {[%clk 0:00:56.6]} 35... Qc6 {[%clk 0:00:21.4]}
36. b5 {[%clk 0:00:56.2]} 36... c2 {[%clk 0:00:21.8]} 37. bxc6 {[%clk
0:00:55.6]} 37... c1=Q+ {[%clk 0:00:22.3]} 38. Kg2 {[%clk 0:00:56]} 38... Qxc6
{[%clk 0:00:23.2]} 39. Qb4+ {[%clk 0:00:54.5]} 39... Qd6 {[%clk 0:00:18.5]} 40.
Qa5 {[%clk 0:00:48.1]} 40... h6 {[%clk 0:00:16.1]} 41. Qxa7+ {[%clk 0:00:45.7]}
41... Qd7 {[%clk 0:00:16.5]} 42. Qc5+ {[%clk 0:00:45.8]} 42... Qd6 {[%clk
0:00:16.5]} 43. Qxd6+ {[%clk 0:00:46.1]} 43... Kxd6 {[%clk 0:00:17.4]} 44. Nf7+
{[%clk 0:00:46.8]} 44... Kc5 {[%clk 0:00:17]} 45. Nxe5 {[%clk 0:00:45]} 45...
Nxe4 {[%clk 0:00:17.4]} 46. Nxg6 {[%clk 0:00:44.4]} 46... Kb4 {[%clk 0:00:17.9]}
47. Kf3 {[%clk 0:00:35.4]} 47... Nf6 {[%clk 0:00:18.1]} 48. Nf4 {[%clk 0:00:31]}
48... e5 {[%clk 0:00:17.4]} 49. Ng6 {[%clk 0:00:31.1]} 49... e4+ {[%clk
0:00:16.4]} 50. Kf4 {[%clk 0:00:31.3]} 50... Kxa4 {[%clk 0:00:16.9]} 51. Kf5
{[%clk 0:00:30.3]} 51... e3 {[%clk 0:00:10.3]} 52. fxe3 {[%clk 0:00:30.1]} 52...
Nh5 {[%clk 0:00:09.5]} 53. g4 {[%clk 0:00:26.3]} 53... Ng3+ {[%clk 0:00:09.5]}
54. Kf4 {[%clk 0:00:25]} 54... Ne2+ {[%clk 0:00:09.7]} 55. Kf3 {[%clk
0:00:24.8]} 55... Nc3 {[%clk 0:00:09.7]} 56. Ne5 {[%clk 0:00:22.7]} 56... Kb5
{[%clk 0:00:09.8]} 57. h5 {[%clk 0:00:21.6]} 57... Nd5 {[%clk 0:00:08.9]} 58.
Nf7 {[%clk 0:00:21.5]} 58... Kc5 {[%clk 0:00:07.6]} 59. Nxh6 {[%clk 0:00:21.6]}
59... Kd6 {[%clk 0:00:08.5]} 60. e4 {[%clk 0:00:18.3]} 60... Ne7 {[%clk
0:00:07.9]} 61. Kf4 {[%clk 0:00:18.3]} 61... Ke6 {[%clk 0:00:08]} 62. Nf5 {[%clk
0:00:18.1]} 62... Ng8 {[%clk 0:00:04.2]} 63. g5 {[%clk 0:00:18.1]} 63... Kf7
{[%clk 0:00:04.2]} 64. Nh6+ {[%clk 0:00:17.5]} 1-0

[Event "*** Titled Tuesday Blitz"]
[Site "Chess.com"]
[Date "2021.04.20"]
[Round "8"]
[White "Legendinunknown"]
[Black "GadimbayliA"]
[Result "0-1"]
[WhiteElo "2581"]
[BlackElo "2760"]
[TimeControl "180+1"]
[EndTime "11:28:07 PDT"]
[Termination "GadimbayliA won by checkmate"]

1. d4 {[%clk 0:03:00.9]} 1... d5 {[%clk 0:02:59.8]} 2. c4 {[%clk 0:03:00.7]}
2... e5 {[%clk 0:02:59.5]} 3. Nc3 {[%clk 0:03:01.3]} 3... dxc4 {[%clk
0:02:59.5]} 4. dxe5 {[%clk 0:02:56]} 4... Qxd1+ {[%clk 0:03:00.4]} 5. Nxd1
{[%clk 0:02:56.4]} 5... Nc6 {[%clk 0:03:01]} 6. Nf3 {[%clk 0:02:55.8]} 6... Bg4
{[%clk 0:03:01.6]} 7. e3 {[%clk 0:02:52.4]} 7... Bxf3 {[%clk 0:03:00.3]} 8. gxf3
{[%clk 0:02:53.3]} 8... Nxe5 {[%clk 0:03:01.2]} 9. Be2 {[%clk 0:02:48.5]} 9...
O-O-O {[%clk 0:03:00]} 10. Bd2 {[%clk 0:02:39.8]} 10... Ne7 {[%clk 0:02:52.5]}
11. Bc3 {[%clk 0:02:30.6]} 11... Nd3+ {[%clk 0:02:51.4]} 12. Kf1 {[%clk
0:02:28.3]} 12... f6 {[%clk 0:02:51.2]} 13. e4 {[%clk 0:02:24.9]} 13... Nc6
{[%clk 0:02:50.8]} 14. Ne3 {[%clk 0:02:24.5]} 14... b5 {[%clk 0:02:45.9]} 15.
Nd5 {[%clk 0:02:01.5]} 15... b4 {[%clk 0:02:36.3]} 16. Bxd3 {[%clk 0:01:54.8]}
16... bxc3 {[%clk 0:02:23]} 17. Bxc4 {[%clk 0:01:52.5]} 17... cxb2 {[%clk
0:02:23.9]} 18. Rb1 {[%clk 0:01:50.1]} 18... Ba3 {[%clk 0:02:22.7]} 19. Ke2
{[%clk 0:01:41.7]} 19... Rd6 {[%clk 0:02:20.7]} 20. Rhd1 {[%clk 0:01:32.7]}
20... Ne5 {[%clk 0:02:05.8]} 21. Bb3 {[%clk 0:01:29.5]} 21... g5 {[%clk
0:02:02.8]} 22. Rd4 {[%clk 0:01:20.7]} 22... Ra6 {[%clk 0:01:23.5]} 23. Nc3
{[%clk 0:01:13.9]} 23... c6 {[%clk 0:01:14.6]} 24. Nd1 {[%clk 0:01:01.3]} 24...
c5 {[%clk 0:01:00.1]} 25. Ra4 {[%clk 0:00:52.7]} 25... Rxa4 {[%clk 0:00:54.5]}
26. Bxa4 {[%clk 0:00:53.6]} 26... Kc7 {[%clk 0:00:47.8]} 27. Nc3 {[%clk
0:00:40.1]} 27... a6 {[%clk 0:00:43.2]} 28. Nd5+ {[%clk 0:00:39]} 28... Kd6
{[%clk 0:00:38.3]} 29. Nxf6 {[%clk 0:00:39.6]} 29... c4 {[%clk 0:00:38]} 30. Nd5
{[%clk 0:00:39.2]} 30... Kc5 {[%clk 0:00:36.9]} 31. Bc2 {[%clk 0:00:33.9]} 31...
Rf8 {[%clk 0:00:32.5]} 32. f4 {[%clk 0:00:24.4]} 32... gxf4 {[%clk 0:00:29.2]}
33. f3 {[%clk 0:00:24.7]} 33... Nc6 {[%clk 0:00:29]} 34. Kf2 {[%clk 0:00:17.7]}
34... Nd4 {[%clk 0:00:29.9]} 35. Ba4 {[%clk 0:00:17.4]} 35... Rb8 {[%clk
0:00:26.3]} 36. Nxf4 {[%clk 0:00:15.5]} 36... c3 {[%clk 0:00:25.2]} 37. Nd3+
{[%clk 0:00:15.7]} 37... Kc4 {[%clk 0:00:25.2]} 38. Ne1 {[%clk 0:00:16.1]} 38...
Kb4 {[%clk 0:00:23.8]} 39. Bc2 {[%clk 0:00:15.4]} 39... Rd8 {[%clk 0:00:23.5]}
40. Ke3 {[%clk 0:00:14]} 40... Ka5 {[%clk 0:00:19.2]} 41. e5 {[%clk 0:00:11.9]}
41... Bc5 {[%clk 0:00:19.2]} 42. Kd3 {[%clk 0:00:09.1]} 42... Nb5+ {[%clk
0:00:15.8]} 43. Ke4 {[%clk 0:00:08.2]} 43... Na3 {[%clk 0:00:15.6]} 44. Nd3
{[%clk 0:00:07.9]} 44... Rd4+ {[%clk 0:00:12.2]} 45. Ke3 {[%clk 0:00:06.8]}
45... Rc4+ {[%clk 0:00:08.8]} 46. Nxc5 {[%clk 0:00:07]} 46... Rxc5 {[%clk
0:00:07.6]} 47. Kd3 {[%clk 0:00:05.7]} 47... Nxb1 {[%clk 0:00:07.1]} 48. Bxb1
{[%clk 0:00:06.6]} 48... Kb4 {[%clk 0:00:07.2]} 49. f4 {[%clk 0:00:06.9]} 49...
Rd5+ {[%clk 0:00:07.4]} 50. Ke3 {[%clk 0:00:06]} 50... Rd1 {[%clk 0:00:07.4]}
51. Bxh7 {[%clk 0:00:06.1]} 51... Re1+ {[%clk 0:00:06.7]} 52. Kf2 {[%clk
0:00:05.7]} 52... b1=Q {[%clk 0:00:06.9]} 53. Bxb1 {[%clk 0:00:05.6]} 53... Rxb1
{[%clk 0:00:07.7]} 54. e6 {[%clk 0:00:06.1]} 54... Kc4 {[%clk 0:00:08.3]} 55. e7
{[%clk 0:00:06]} 55... Rb8 {[%clk 0:00:08.6]} 56. f5 {[%clk 0:00:06.5]} 56... c2
{[%clk 0:00:09]} 57. f6 {[%clk 0:00:07]} 57... c1=Q {[%clk 0:00:09.4]} 58. f7
{[%clk 0:00:07.9]} 58... Qf4+ {[%clk 0:00:08.9]} 59. Kg2 {[%clk 0:00:07.8]}
59... Rb2+ {[%clk 0:00:08.6]} 60. Kg1 {[%clk 0:00:07.5]} 60... Qxh2+ {[%clk
0:00:08.9]} 61. Kf1 {[%clk 0:00:08.4]} 61... Qh1# {[%clk 0:00:09.1]} 0-1

[Event "*** Titled Tuesday Blitz"]
[Site "Chess.com"]
[Date "2021.04.20"]
[Round "8"]
[White "PchelkinVK"]
[Black "CSB7"]
[Result "0-1"]
[WhiteElo "2637"]
[BlackElo "2757"]
[TimeControl "180+1"]
[EndTime "11:28:09 PDT"]
[Termination "CSB7 won by resignation"]

1. d4 {[%clk 0:03:00.9]} 1... Nf6 {[%clk 0:02:58.9]} 2. Nc3 {[%clk 0:02:59.9]}
2... d5 {[%clk 0:02:58.2]} 3. Bf4 {[%clk 0:03:00.2]} 3... c5 {[%clk 0:02:57.7]}
4. e4 {[%clk 0:02:59.5]} 4... Nxe4 {[%clk 0:02:11.3]} 5. Nxe4 {[%clk 0:02:57.1]}
5... dxe4 {[%clk 0:02:12.2]} 6. d5 {[%clk 0:02:57.7]} 6... Nd7 {[%clk
0:02:06.3]} 7. Qd2 {[%clk 0:02:53.9]} 7... g6 {[%clk 0:02:02.3]} 8. Qc3 {[%clk
0:02:48.8]} 8... Nf6 {[%clk 0:01:56.9]} 9. O-O-O {[%clk 0:02:41.1]} 9... Bg7
{[%clk 0:01:52.3]} 10. d6 {[%clk 0:02:41.5]} 10... O-O {[%clk 0:01:30.6]} 11.
dxe7 {[%clk 0:02:41.6]} 11... Qxe7 {[%clk 0:01:31.5]} 12. Bd6 {[%clk 0:02:41.8]}
12... Bh6+ {[%clk 0:01:28]} 13. Kb1 {[%clk 0:02:18]} 13... Rd8 {[%clk
0:01:22.9]} 14. Qxc5 {[%clk 0:01:44.3]} 14... Ne8 {[%clk 0:01:17.7]} 15. Bc4
{[%clk 0:00:43.3]} 15... Rxd6 {[%clk 0:01:12.7]} 16. Rxd6 {[%clk 0:00:25.6]}
16... Qxd6 {[%clk 0:01:13.6]} 17. Qxd6 {[%clk 0:00:25.4]} 17... Nxd6 {[%clk
0:01:13.6]} 18. Bb3 {[%clk 0:00:23.4]} 18... Be6 {[%clk 0:01:10.9]} 19. Ne2
{[%clk 0:00:23]} 19... Bxb3 {[%clk 0:01:08.2]} 20. axb3 {[%clk 0:00:23.9]} 20...
Rd8 {[%clk 0:01:07.7]} 21. Rd1 {[%clk 0:00:23.4]} 21... f5 {[%clk 0:01:07.8]}
22. Nc3 {[%clk 0:00:23.4]} 22... Nf7 {[%clk 0:01:03.8]} 23. Rf1 {[%clk
0:00:20.3]} 23... Bg7 {[%clk 0:01:02]} 24. Ne2 {[%clk 0:00:14]} 24... Ne5 {[%clk
0:00:55.1]} 25. h3 {[%clk 0:00:11]} 25... Nc6 {[%clk 0:00:53.7]} 26. c3 {[%clk
0:00:10.1]} 26... Rd2 {[%clk 0:00:50.2]} 27. Nf4 {[%clk 0:00:06.9]} 27... Bh6
{[%clk 0:00:42]} 28. Ne6 {[%clk 0:00:05.4]} 28... Rd6 {[%clk 0:00:40.8]} 29. Nc5
{[%clk 0:00:04.8]} 29... b6 {[%clk 0:00:40.3]} 30. Na4 {[%clk 0:00:05.2]} 30...
Bf8 {[%clk 0:00:35]} 31. Kc2 {[%clk 0:00:03.8]} 31... Rd8 {[%clk 0:00:32.5]} 32.
b4 {[%clk 0:00:03.2]} 32... Ne5 {[%clk 0:00:29.2]} 33. Ra1 {[%clk 0:00:03.4]}
33... Nd3 {[%clk 0:00:28.3]} 34. f3 {[%clk 0:00:03.4]} 34... exf3 {[%clk
0:00:25.8]} 35. gxf3 {[%clk 0:00:04.3]} 35... Nf4 {[%clk 0:00:21.4]} 36. b3
{[%clk 0:00:02.2]} 36... Nxh3 {[%clk 0:00:20.4]} 37. Nb2 {[%clk 0:00:02.9]}
37... Rd7 {[%clk 0:00:20.9]} 38. Nc4 {[%clk 0:00:03.5]} 38... Ng5 {[%clk
0:00:18.5]} 39. Ne5 {[%clk 0:00:03.9]} 39... Rc7 {[%clk 0:00:18.5]} 40. b5
{[%clk 0:00:02.5]} 40... Bg7 {[%clk 0:00:09.3]} 41. Nc6 {[%clk 0:00:02.8]} 41...
Nxf3 {[%clk 0:00:09.3]} 42. Rxa7 {[%clk 0:00:02.3]} 42... Rxa7 {[%clk
0:00:08.7]} 43. Nxa7 {[%clk 0:00:03.2]} 43... Ne5 {[%clk 0:00:05.7]} 44. Nc8
{[%clk 0:00:03.7]} 44... Nd7 {[%clk 0:00:06.2]} 45. Ne7+ {[%clk 0:00:03.9]}
45... Kf7 {[%clk 0:00:06]} 46. Nd5 {[%clk 0:00:04.8]} 46... h5 {[%clk
0:00:06.2]} 47. Kd3 {[%clk 0:00:04.5]} 47... h4 {[%clk 0:00:06.6]} 48. b4 {[%clk
0:00:04.6]} 48... h3 {[%clk 0:00:06.7]} 49. Nf4 {[%clk 0:00:04.9]} 49... h2
{[%clk 0:00:06.7]} 50. c4 {[%clk 0:00:04.2]} 50... h1=Q {[%clk 0:00:06.8]} 51.
Nd5 {[%clk 0:00:04.8]} 51... Qe4+ {[%clk 0:00:07.3]} 52. Kd2 {[%clk 0:00:04]}
52... Qxd5+ {[%clk 0:00:08.2]} 53. cxd5 {[%clk 0:00:03.9]} 53... Ke7 {[%clk
0:00:09.1]} 54. Kd3 {[%clk 0:00:04.3]} 54... Kd6 {[%clk 0:00:10]} 55. Kc4 {[%clk
0:00:05.2]} 55... Ne5+ {[%clk 0:00:10]} 56. Kb3 {[%clk 0:00:05.5]} 56... Kxd5
{[%clk 0:00:10.9]} 57. Ka4 {[%clk 0:00:06.4]} 57... Kc4 {[%clk 0:00:10.8]} 58.
Ka3 {[%clk 0:00:06.8]} 58... Kxb5 {[%clk 0:00:11.3]} 59. Kb3 {[%clk 0:00:07.7]}
59... Nc6 {[%clk 0:00:11.8]} 60. Kc2 {[%clk 0:00:07.6]} 60... Nxb4+ {[%clk
0:00:12.7]} 61. Kd2 {[%clk 0:00:08.5]} 61... f4 {[%clk 0:00:13]} 62. Ke2 {[%clk
0:00:08.7]} 62... g5 {[%clk 0:00:13.9]} 63. Kf3 {[%clk 0:00:09.6]} 63... Nc6
{[%clk 0:00:13.6]} 64. Kg4 {[%clk 0:00:10.5]} 64... Bf6 {[%clk 0:00:13.7]} 65.
Kf3 {[%clk 0:00:11.4]} 65... Kc4 {[%clk 0:00:12.7]} 66. Ke4 {[%clk 0:00:12.3]}
66... b5 {[%clk 0:00:13.1]} 67. Kf3 {[%clk 0:00:13.2]} 67... Kd5 {[%clk
0:00:13.2]} 68. Ke2 {[%clk 0:00:14.1]} 68... Ke4 {[%clk 0:00:13.5]} 69. Kd1
{[%clk 0:00:15]} 69... b4 {[%clk 0:00:14]} 70. Kc2 {[%clk 0:00:15.9]} 70... Kd4
{[%clk 0:00:14.1]} 71. Kd1 {[%clk 0:00:16.8]} 71... Kd3 {[%clk 0:00:14.1]} 72.
Kc1 {[%clk 0:00:17.7]} 72... g4 {[%clk 0:00:14.6]} 73. Kd1 {[%clk 0:00:18.6]}
73... g3 {[%clk 0:00:14.9]} 74. Ke1 {[%clk 0:00:19.5]} 74... f3 {[%clk
0:00:14.9]} 75. Kf1 {[%clk 0:00:20.4]} 75... b3 {[%clk 0:00:15]} 76. Kg1 {[%clk
0:00:21.3]} 0-1